[Event "*** Titled Tuesday Blitz"]
[Site "Chess.com"]
[Date "2019.12.03"]
[Round "8"]
[White "albi1999"]
[Black "Sanan_Sjugirov"]
[Result "0-1"]
[WhiteElo "2615"]
[BlackElo "2908"]
[TimeControl "180+2"]
[EndTime "14:55:27 PST"]
[Termination "Sanan_Sjugirov won by checkmate"]

1. d4 {[%clk 0:03:01.9]} 1... Nf6 {[%clk 0:03:01.2]} 2. c4 {[%clk 0:03:02.6]}
2... e6 {[%clk 0:03:02.2]} 3. Nf3 {[%clk 0:03:03.2]} 3... d5 {[%clk 0:03:03.1]}
4. g3 {[%clk 0:03:04.2]} 4... Bb4+ {[%clk 0:03:02.5]} 5. Bd2 {[%clk 0:03:05]}
5... Be7 {[%clk 0:03:03.5]} 6. Bg2 {[%clk 0:03:06.1]} 6... O-O {[%clk
0:03:05.1]} 7. O-O {[%clk 0:03:07.7]} 7... c6 {[%clk 0:03:05.8]} 8. Qc2 {[%clk
0:03:09]} 8... b6 {[%clk 0:03:06.7]} 9. Rd1 {[%clk 0:03:10]} 9... Nbd7 {[%clk
0:03:07.3]} 10. b3 {[%clk 0:03:11.3]} 10... Ba6 {[%clk 0:03:07.9]} 11. Bc1
{[%clk 0:03:10.8]} 11... Rc8 {[%clk 0:03:04.6]} 12. Bb2 {[%clk 0:03:11.8]} 12...
Ne4 {[%clk 0:03:02.6]} 13. Nc3 {[%clk 0:02:45]} 13... f5 {[%clk 0:03:03.1]} 14.
e3 {[%clk 0:02:41.4]} 14... Bd6 {[%clk 0:03:01.9]} 15. Ne2 {[%clk 0:02:41.4]}
15... Qe7 {[%clk 0:02:59.8]} 16. Nf4 {[%clk 0:02:42.1]} 16... g5 {[%clk
0:02:32.9]} 17. Nd3 {[%clk 0:02:41.5]} 17... c5 {[%clk 0:02:19.1]} 18. dxc5
{[%clk 0:02:35.4]} 18... Ndxc5 {[%clk 0:02:20.3]} 19. Nxc5 {[%clk 0:02:10.7]}
19... Rxc5 {[%clk 0:02:14.1]} 20. Nd2 {[%clk 0:01:52.7]} 20... Nf6 {[%clk
0:01:38.5]} 21. Rac1 {[%clk 0:01:35.2]} 21... Rc7 {[%clk 0:01:30.2]} 22. Qb1
{[%clk 0:01:21.5]} 22... dxc4 {[%clk 0:01:30.1]} 23. Nxc4 {[%clk 0:01:22.1]}
23... Bxc4 {[%clk 0:01:31.1]} 24. bxc4 {[%clk 0:01:24]} 24... Ba3 {[%clk
0:01:31.2]} 25. Bxa3 {[%clk 0:01:11.9]} 25... Qxa3 {[%clk 0:01:33.1]} 26. Qb3
{[%clk 0:01:13.8]} 26... Qe7 {[%clk 0:01:27.2]} 27. Rc2 {[%clk 0:01:02]} 27...
Nd7 {[%clk 0:01:27.1]} 28. Qd3 {[%clk 0:00:49.2]} 28... Nc5 {[%clk 0:01:26.1]}
29. Qe2 {[%clk 0:00:42.2]} 29... Rd7 {[%clk 0:01:24.4]} 30. Rcd2 {[%clk
0:00:42.9]} 30... Rfd8 {[%clk 0:01:25.2]} 31. h3 {[%clk 0:00:40.7]} 31... h6
{[%clk 0:01:15.6]} 32. Rd4 {[%clk 0:00:38.6]} 32... Kf7 {[%clk 0:00:54.3]} 33.
Qd2 {[%clk 0:00:37.8]} 33... Qf6 {[%clk 0:00:42.7]} 34. Bc6 {[%clk 0:00:24.6]}
34... Rxd4 {[%clk 0:00:39.8]} 35. exd4 {[%clk 0:00:26.5]} 35... Kg7 {[%clk
0:00:39.6]} 36. Bg2 {[%clk 0:00:20.7]} 36... Kg6 {[%clk 0:00:29.7]} 37. Qc3
{[%clk 0:00:19.3]} 37... e5 {[%clk 0:00:27.1]} 38. Bd5 {[%clk 0:00:17.2]} 38...
exd4 {[%clk 0:00:28.1]} 39. Qxd4 {[%clk 0:00:17.9]} 39... Qxd4 {[%clk
0:00:28.8]} 40. Rxd4 {[%clk 0:00:19.8]} 40... Kf6 {[%clk 0:00:30.3]} 41. Kf1
{[%clk 0:00:21.2]} 41... Ne6 {[%clk 0:00:19.3]} 42. Rd2 {[%clk 0:00:21.5]} 42...
Nc7 {[%clk 0:00:20.4]} 43. Ke2 {[%clk 0:00:21.7]} 43... Nxd5 {[%clk 0:00:18]}
44. cxd5 {[%clk 0:00:22.6]} 44... Ke5 {[%clk 0:00:19.4]} 45. Rc2 {[%clk
0:00:19.5]} 45... Rxd5 {[%clk 0:00:20.1]} 46. Rc6 {[%clk 0:00:18.9]} 46... Ra5
{[%clk 0:00:19.7]} 47. Rxh6 {[%clk 0:00:19.4]} 47... Rxa2+ {[%clk 0:00:20.9]}
48. Kf3 {[%clk 0:00:21.3]} 48... Ra3+ {[%clk 0:00:21.8]} 49. Kg2 {[%clk
0:00:22.2]} 49... g4 {[%clk 0:00:07.8]} 50. hxg4 {[%clk 0:00:20.9]} 50... fxg4
{[%clk 0:00:09.7]} 51. Rh5+ {[%clk 0:00:21.2]} 51... Kf6 {[%clk 0:00:10]} 52.
Rd5 {[%clk 0:00:21.9]} 52... Ra4 {[%clk 0:00:09.5]} 53. Kf1 {[%clk 0:00:23]}
53... Ke6 {[%clk 0:00:09.7]} 54. Rg5 {[%clk 0:00:22.7]} 54... Rb4 {[%clk
0:00:08.3]} 55. Rg6+ {[%clk 0:00:19.8]} 55... Kf5 {[%clk 0:00:08.4]} 56. Rc6
{[%clk 0:00:19.8]} 56... a5 {[%clk 0:00:09.1]} 57. Ke2 {[%clk 0:00:21.4]} 57...
a4 {[%clk 0:00:09.4]} 58. Rc8 {[%clk 0:00:22.4]} 58... b5 {[%clk 0:00:10]} 59.
Ra8 {[%clk 0:00:23.1]} 59... Rb3 {[%clk 0:00:09.6]} 60. Ra5 {[%clk 0:00:23.3]}
60... Ke4 {[%clk 0:00:10]} 61. Ra8 {[%clk 0:00:23.6]} 61... Rb2+ {[%clk
0:00:09.8]} 62. Ke1 {[%clk 0:00:24.3]} 62... Kd3 {[%clk 0:00:10.3]} 63. Rg8
{[%clk 0:00:23.9]} 63... Rb1# {[%clk 0:00:10.9]} 0-1

[Event "*** Titled Tuesday Blitz"]
[Site "Chess.com"]
[Date "2019.12.03"]
[Round "8"]
[White "Orest_Vovk"]
[Black "saraswathii"]
[Result "1-0"]
[WhiteElo "2323"]
[BlackElo "2231"]
[TimeControl "180+2"]
[EndTime "14:55:31 PST"]
[Termination "Orest_Vovk won by resignation"]

1. h4 {[%clk 0:03:01.9]} 1... Nf6 {[%clk 0:02:59.1]} 2. h5 {[%clk 0:03:02.5]}
2... d6 {[%clk 0:02:58.5]} 3. h6 {[%clk 0:03:02.6]} 3... g6 {[%clk 0:02:59.2]}
4. Nc3 {[%clk 0:02:58.6]} 4... b6 {[%clk 0:02:59.4]} 5. e4 {[%clk 0:02:43.5]}
5... Bb7 {[%clk 0:02:59.5]} 6. d3 {[%clk 0:02:44.5]} 6... Nbd7 {[%clk
0:02:59.1]} 7. f4 {[%clk 0:02:45.5]} 7... e5 {[%clk 0:02:58.7]} 8. g4 {[%clk
0:02:44.4]} 8... d5 {[%clk 0:02:46.4]} 9. g5 {[%clk 0:02:39.5]} 9... Ng8 {[%clk
0:02:46.4]} 10. f5 {[%clk 0:02:37.1]} 10... dxe4 {[%clk 0:02:41.9]} 11. dxe4
{[%clk 0:02:37.7]} 11... gxf5 {[%clk 0:02:38.8]} 12. Bg2 {[%clk 0:02:21.6]}
12... Bb4 {[%clk 0:02:36]} 13. Ne2 {[%clk 0:02:17.7]} 13... f4 {[%clk
0:02:03.2]} 14. Rh5 {[%clk 0:01:59.9]} 14... Ne7 {[%clk 0:01:32.5]} 15. a3
{[%clk 0:01:59.7]} 15... Bd6 {[%clk 0:01:26.9]} 16. Nd5 {[%clk 0:01:45.6]} 16...
c6 {[%clk 0:01:15.8]} 17. Ndxf4 {[%clk 0:01:39.7]} 17... Nc5 {[%clk 0:01:14.3]}
18. Nd3 {[%clk 0:01:36.4]} 18... Qc7 {[%clk 0:01:09.6]} 19. Be3 {[%clk
0:01:32.1]} 19... Ne6 {[%clk 0:01:06.4]} 20. Qd2 {[%clk 0:01:31]} 20... O-O-O
{[%clk 0:01:06.4]} 21. O-O-O {[%clk 0:01:32.1]} 21... c5 {[%clk 0:01:04.1]} 22.
Qc3 {[%clk 0:01:29.3]} 22... Nd4 {[%clk 0:00:58.9]} 23. Ng3 {[%clk 0:01:24.1]}
23... Ng6 {[%clk 0:00:53.9]} 24. Kb1 {[%clk 0:01:20.5]} 24... Kb8 {[%clk
0:00:48.6]} 25. Rhh1 {[%clk 0:01:08.6]} 25... Rhe8 {[%clk 0:00:42.4]} 26. Rhf1
{[%clk 0:01:09.4]} 26... Nf4 {[%clk 0:00:27.8]} 27. Nxf4 {[%clk 0:01:05.5]}
27... exf4 {[%clk 0:00:27.8]} 28. Bxd4 {[%clk 0:01:06.8]} 28... cxd4 {[%clk
0:00:26.3]} 29. Qxc7+ {[%clk 0:01:07.3]} 29... Bxc7 {[%clk 0:00:28.2]} 30. Nh5
{[%clk 0:00:54.9]} 30... Bxe4 {[%clk 0:00:27.3]} 31. Bxe4 {[%clk 0:00:55.9]}
31... Rxe4 {[%clk 0:00:29.2]} 32. Nf6 {[%clk 0:00:57.4]} 32... Re5 {[%clk
0:00:25.5]} 33. Nxh7 {[%clk 0:00:58.2]} 33... Rh8 {[%clk 0:00:25.3]} 34. Nf6
{[%clk 0:00:52.7]} 34... Rxg5 {[%clk 0:00:25.6]} 35. Rxd4 {[%clk 0:00:49]} 35...
Rxh6 {[%clk 0:00:22.8]} 36. Ne8 {[%clk 0:00:47.8]} 36... Be5 {[%clk 0:00:19.2]}
37. Rd7 {[%clk 0:00:47.4]} 37... Rhg6 {[%clk 0:00:17.1]} 38. Rxf7 {[%clk
0:00:44.5]} 38... Rg1 {[%clk 0:00:17.4]} 39. Rxg1 {[%clk 0:00:45.6]} 39... Rxg1+
{[%clk 0:00:19.3]} 40. Ka2 {[%clk 0:00:47.4]} 40... Rg2 {[%clk 0:00:20.2]} 41.
Kb3 {[%clk 0:00:46.7]} 41... Re2 {[%clk 0:00:20.6]} 42. Nf6 {[%clk 0:00:43.2]}
42... Re3+ {[%clk 0:00:17.5]} 43. c3 {[%clk 0:00:44.1]} 43... Bxf6 {[%clk
0:00:18.3]} 44. Rxf6 {[%clk 0:00:45.1]} 44... f3 {[%clk 0:00:20.2]} 45. Rf7
{[%clk 0:00:39.6]} 45... a5 {[%clk 0:00:18.2]} 46. Kc4 {[%clk 0:00:37.7]} 46...
Re2 {[%clk 0:00:16.9]} 47. b4 {[%clk 0:00:37.8]} 47... axb4 {[%clk 0:00:17.2]}
48. axb4 {[%clk 0:00:37.8]} 48... f2 {[%clk 0:00:18.3]} 49. Kb5 {[%clk
0:00:38.7]} 49... Kc8 {[%clk 0:00:17.6]} 50. Kxb6 {[%clk 0:00:39.7]} 50... Kd8
{[%clk 0:00:18.8]} 51. c4 {[%clk 0:00:40.4]} 51... Ke8 {[%clk 0:00:19.8]} 52.
Rf3 {[%clk 0:00:41.4]} 52... Kd7 {[%clk 0:00:20.8]} 53. c5 {[%clk 0:00:42.5]}
53... Ke7 {[%clk 0:00:20.1]} 54. b5 {[%clk 0:00:43.6]} 54... Re6+ {[%clk
0:00:20.6]} 55. c6 {[%clk 0:00:42.9]} 55... Rf6 {[%clk 0:00:21.6]} 56. Rxf6
{[%clk 0:00:34]} 56... Kxf6 {[%clk 0:00:22]} 57. c7 {[%clk 0:00:35.9]} 57...
f1=Q {[%clk 0:00:22.2]} 58. c8=Q {[%clk 0:00:36.8]} 58... Qf2+ {[%clk 0:00:23]}
59. Qc5 {[%clk 0:00:37.2]} 59... Qe2 {[%clk 0:00:19.6]} 60. Qf8+ {[%clk
0:00:37.4]} 60... Kg6 {[%clk 0:00:19.7]} 61. Qd6+ {[%clk 0:00:35.3]} 61... Kf7
{[%clk 0:00:19.8]} 62. Qd7+ {[%clk 0:00:30.6]} 62... Kf6 {[%clk 0:00:20.3]} 63.
Kc7 {[%clk 0:00:28.3]} 63... Qb2 {[%clk 0:00:11.8]} 64. b6 {[%clk 0:00:27.7]}
1-0

[Event "*** Titled Tuesday Blitz"]
[Site "Chess.com"]
[Date "2019.12.03"]
[Round "8"]
[White "Azatic"]
[Black "enriquetejedor"]
[Result "1/2-1/2"]
[WhiteElo "2615"]
[BlackElo "2479"]
[TimeControl "180+2"]
[EndTime "14:56:07 PST"]
[Termination "Game drawn by repetition"]

1. e4 {[%clk 0:03:01.9]} 1... c6 {[%clk 0:02:26.9]} 2. d4 {[%clk 0:03:02.6]}
2... d5 {[%clk 0:02:24.3]} 3. e5 {[%clk 0:03:04.1]} 3... c5 {[%clk 0:02:15.7]}
4. dxc5 {[%clk 0:03:06]} 4... Nc6 {[%clk 0:02:11.1]} 5. Bb5 {[%clk 0:03:06.2]}
5... e6 {[%clk 0:01:44]} 6. Be3 {[%clk 0:03:06.8]} 6... Ne7 {[%clk 0:01:39.2]}
7. c3 {[%clk 0:03:03.5]} 7... Bd7 {[%clk 0:01:02.4]} 8. Bxc6 {[%clk 0:03:00.5]}
8... Nxc6 {[%clk 0:00:25.8]} 9. Nf3 {[%clk 0:03:01.4]} 9... Qc7 {[%clk
0:00:25.1]} 10. Qb3 {[%clk 0:02:17.6]} 10... Na5 {[%clk 0:00:24.1]} 11. Qc2
{[%clk 0:02:14]} 11... Nc4 {[%clk 0:00:21.6]} 12. Bd4 {[%clk 0:02:12.6]} 12...
Bxc5 {[%clk 0:00:21.1]} 13. O-O {[%clk 0:02:13.2]} 13... h6 {[%clk 0:00:16.3]}
14. Bxc5 {[%clk 0:02:12.7]} 14... Qxc5 {[%clk 0:00:15.4]} 15. Nbd2 {[%clk
0:02:14.6]} 15... Nxd2 {[%clk 0:00:14.5]} 16. Qxd2 {[%clk 0:02:15.1]} 16... O-O
{[%clk 0:00:14]} 17. Nd4 {[%clk 0:02:15.2]} 17... f6 {[%clk 0:00:15.1]} 18. Qe3
{[%clk 0:02:12.1]} 18... Qc7 {[%clk 0:00:10.8]} 19. exf6 {[%clk 0:02:09.1]}
19... Rxf6 {[%clk 0:00:12.7]} 20. Rae1 {[%clk 0:02:09.9]} 20... Raf8 {[%clk
0:00:07.8]} 21. g3 {[%clk 0:02:11]} 21... Qb6 {[%clk 0:00:03.8]} 22. Qd2 {[%clk
0:02:08.6]} 22... Qd6 {[%clk 0:00:03.1]} 23. f4 {[%clk 0:02:09.2]} 23... a6
{[%clk 0:00:04.1]} 24. Qe3 {[%clk 0:02:03.2]} 24... Kh8 {[%clk 0:00:05.3]} 25.
Qe5 {[%clk 0:02:01.1]} 25... Qxe5 {[%clk 0:00:06.1]} 26. Rxe5 {[%clk 0:01:59.8]}
26... Kg8 {[%clk 0:00:06.4]} 27. Rfe1 {[%clk 0:02:00.4]} 27... Kf7 {[%clk
0:00:07.2]} 28. f5 {[%clk 0:02:00.8]} 28... Re8 {[%clk 0:00:08.4]} 29. fxe6+
{[%clk 0:01:58.7]} 29... Bxe6 {[%clk 0:00:08.8]} 30. Kg2 {[%clk 0:01:54.6]}
30... Bd7 {[%clk 0:00:05.1]} 31. Rxe8 {[%clk 0:01:53.4]} 31... Bxe8 {[%clk
0:00:06.7]} 32. Re5 {[%clk 0:01:50.3]} 32... Rd6 {[%clk 0:00:05.9]} 33. Nf5
{[%clk 0:01:49.5]} 33... Rd7 {[%clk 0:00:05.8]} 34. Nd4 {[%clk 0:01:46.1]} 34...
Rd6 {[%clk 0:00:05.4]} 35. Nf5 {[%clk 0:01:43.2]} 35... Rd7 {[%clk 0:00:06.2]}
36. g4 {[%clk 0:01:44.6]} 36... Kf8 {[%clk 0:00:06.6]} 37. Kg3 {[%clk 0:01:43]}
37... Bf7 {[%clk 0:00:07.9]} 38. h4 {[%clk 0:01:41.9]} 38... d4 {[%clk
0:00:09.3]} 39. Nxd4 {[%clk 0:01:40.2]} 39... Bxa2 {[%clk 0:00:10.9]} 40. g5
{[%clk 0:01:38.5]} 40... hxg5 {[%clk 0:00:11.6]} 41. hxg5 {[%clk 0:01:40.4]}
41... Bf7 {[%clk 0:00:12.5]} 42. Rc5 {[%clk 0:01:38.4]} 42... Ba2 {[%clk
0:00:03.5]} 43. Kf4 {[%clk 0:01:26.6]} 43... Bb1 {[%clk 0:00:04.3]} 44. Rc8+
{[%clk 0:01:21.6]} 44... Kf7 {[%clk 0:00:05.2]} 45. Nf3 {[%clk 0:01:16.8]} 45...
Ke7 {[%clk 0:00:03]} 46. Rg8 {[%clk 0:01:14.6]} 46... Kd6 {[%clk 0:00:03.3]} 47.
Ne5 {[%clk 0:01:12.9]} 47... Re7 {[%clk 0:00:04.7]} 48. Rd8+ {[%clk 0:01:11]}
48... Kc7 {[%clk 0:00:05.8]} 49. Rd4 {[%clk 0:01:10.6]} 49... Ba2 {[%clk
0:00:06.1]} 50. g6 {[%clk 0:01:11.4]} 50... Bb3 {[%clk 0:00:03.4]} 51. Rb4
{[%clk 0:01:10]} 51... Bd5 {[%clk 0:00:04]} 52. Rd4 {[%clk 0:01:09.9]} 52... Be6
{[%clk 0:00:05.2]} 53. Nd3 {[%clk 0:01:05.7]} 53... Re8 {[%clk 0:00:05.2]} 54.
Kg5 {[%clk 0:01:04.4]} 54... Rf8 {[%clk 0:00:05.2]} 55. Rf4 {[%clk 0:01:04.3]}
55... Rh8 {[%clk 0:00:03.2]} 56. Nc5 {[%clk 0:01:03.5]} 56... Bd5 {[%clk
0:00:03.2]} 57. c4 {[%clk 0:01:03.1]} 57... Bg8 {[%clk 0:00:03.1]} 58. Rf8
{[%clk 0:01:02.1]} 58... Kd6 {[%clk 0:00:03.5]} 59. Nxb7+ {[%clk 0:01:01.6]}
59... Ke7 {[%clk 0:00:04.4]} 60. Rb8 {[%clk 0:01:01.5]} 60... Rh2 {[%clk
0:00:02.9]} 61. Rxg8 {[%clk 0:01:02.1]} 61... Rg2+ {[%clk 0:00:04.3]} 62. Kf5
{[%clk 0:01:02.8]} 62... Rf2+ {[%clk 0:00:05.1]} 63. Ke5 {[%clk 0:01:04.2]}
63... Re2+ {[%clk 0:00:05.3]} 64. Kd5 {[%clk 0:01:05.6]} 64... Rxb2 {[%clk
0:00:07.2]} 65. Rxg7+ {[%clk 0:01:06]} 65... Kf6 {[%clk 0:00:08.5]} 66. Rc7
{[%clk 0:01:05.3]} 66... Kxg6 {[%clk 0:00:09.7]} 67. Nc5 {[%clk 0:01:06.7]}
67... a5 {[%clk 0:00:10.4]} 68. Ra7 {[%clk 0:01:07.3]} 68... Ra2 {[%clk
0:00:10.7]} 69. Nd7 {[%clk 0:00:55.7]} 69... Kf7 {[%clk 0:00:09.8]} 70. Kc5
{[%clk 0:00:56.4]} 70... Ke7 {[%clk 0:00:10.9]} 71. Nb6+ {[%clk 0:00:54.9]}
71... Kd8 {[%clk 0:00:11.6]} 72. Kb5 {[%clk 0:00:55.5]} 72... Rb2+ {[%clk
0:00:09.4]} 73. Kxa5 {[%clk 0:00:55.6]} 73... Ra2+ {[%clk 0:00:10.8]} 74. Kb5
{[%clk 0:00:56.6]} 74... Rxa7 {[%clk 0:00:11.4]} 75. c5 {[%clk 0:00:57.4]} 75...
Rh7 {[%clk 0:00:11.7]} 76. Kc6 {[%clk 0:00:57.3]} 76... Rh6+ {[%clk 0:00:11.2]}
77. Kb5 {[%clk 0:00:59.2]} 77... Kc7 {[%clk 0:00:12]} 78. Nd5+ {[%clk
0:01:00.4]} 78... Kb7 {[%clk 0:00:13.5]} 79. Nb6 {[%clk 0:01:00.4]} 79... Rg6
{[%clk 0:00:14.6]} 80. Nd5 {[%clk 0:01:01.5]} 80... Rh6 {[%clk 0:00:15.7]} 81.
Nc3 {[%clk 0:01:02.5]} 81... Rh1 {[%clk 0:00:16.9]} 82. Nd5 {[%clk 0:01:01.4]}
82... Rb1+ {[%clk 0:00:16.8]} 83. Kc4 {[%clk 0:01:02.3]} 83... Rc1+ {[%clk
0:00:18.3]} 84. Kb5 {[%clk 0:01:03.4]} 84... Rb1+ {[%clk 0:00:18.6]} 85. Kc4
{[%clk 0:01:04.7]} 85... Kc6 {[%clk 0:00:19.8]} 86. Nb4+ {[%clk 0:01:05.6]}
86... Kc7 {[%clk 0:00:20.9]} 87. Nd5+ {[%clk 0:01:07]} 87... Kc8 {[%clk
0:00:22.2]} 88. Nb6+ {[%clk 0:01:06.7]} 88... Kb7 {[%clk 0:00:23.1]} 89. Nd5
{[%clk 0:01:08]} 1/2-1/2

[Event "*** Titled Tuesday Blitz"]
[Site "Chess.com"]
[Date "2019.12.03"]
[Round "8"]
[White "DeviatkinAndrey"]
[Black "jefferyx"]
[Result "0-1"]
[WhiteElo "2702"]
[BlackElo "2899"]
[TimeControl "180+2"]
[EndTime "14:56:31 PST"]
[Termination "jefferyx won on time"]

1. d4 {[%clk 0:03:01.9]} 1... Nf6 {[%clk 0:02:02.6]} 2. Nf3 {[%clk 0:03:02]}
2... d5 {[%clk 0:02:02.5]} 3. Bg5 {[%clk 0:02:59.8]} 3... Ne4 {[%clk 0:01:55.3]}
4. Bf4 {[%clk 0:02:43.2]} 4... c5 {[%clk 0:01:56.3]} 5. c3 {[%clk 0:02:43.6]}
5... Nc6 {[%clk 0:01:57.6]} 6. e3 {[%clk 0:02:44.4]} 6... Bf5 {[%clk 0:01:58.5]}
7. Nbd2 {[%clk 0:02:44.5]} 7... e6 {[%clk 0:01:59.7]} 8. Nxe4 {[%clk 0:02:43.3]}
8... Bxe4 {[%clk 0:02:00.6]} 9. Nd2 {[%clk 0:02:44.3]} 9... Bg6 {[%clk
0:02:01.3]} 10. Be2 {[%clk 0:02:42]} 10... Qb6 {[%clk 0:02:02.4]} 11. Qb3 {[%clk
0:02:41.2]} 11... c4 {[%clk 0:02:03.4]} 12. Qxb6 {[%clk 0:02:42.3]} 12... axb6
{[%clk 0:02:05.3]} 13. a3 {[%clk 0:02:43.7]} 13... b5 {[%clk 0:02:06.8]} 14. Rc1
{[%clk 0:02:43.8]} 14... f6 {[%clk 0:02:03.6]} 15. f3 {[%clk 0:02:03.2]} 15...
e5 {[%clk 0:02:02.5]} 16. Bg3 {[%clk 0:02:04.3]} 16... Kd7 {[%clk 0:01:56.2]}
17. Kf2 {[%clk 0:02:04.7]} 17... exd4 {[%clk 0:01:53.4]} 18. exd4 {[%clk
0:02:05.6]} 18... Ne7 {[%clk 0:01:45.2]} 19. Bd1 {[%clk 0:01:58]} 19... Nc8
{[%clk 0:01:40.8]} 20. Bc2 {[%clk 0:01:34.7]} 20... Nb6 {[%clk 0:01:41.4]} 21.
h4 {[%clk 0:01:29.8]} 21... Na4 {[%clk 0:01:42.4]} 22. h5 {[%clk 0:01:30.8]}
22... Bxc2 {[%clk 0:01:41.6]} 23. Rxc2 {[%clk 0:01:31.7]} 23... Be7 {[%clk
0:01:40.2]} 24. Nf1 {[%clk 0:01:32.1]} 24... Rhe8 {[%clk 0:01:31.7]} 25. Bf4
{[%clk 0:01:29.5]} 25... Kc6 {[%clk 0:01:27.7]} 26. Bc1 {[%clk 0:01:30.1]} 26...
Bd6 {[%clk 0:01:21.7]} 27. Ne3 {[%clk 0:01:30.1]} 27... Re6 {[%clk 0:01:21.6]}
28. Nf5 {[%clk 0:01:27]} 28... Bf8 {[%clk 0:01:22.9]} 29. Re2 {[%clk 0:01:17.9]}
29... Rxe2+ {[%clk 0:01:22.8]} 30. Kxe2 {[%clk 0:01:18.8]} 30... Re8+ {[%clk
0:01:24.7]} 31. Kf2 {[%clk 0:01:19.7]} 31... Kd7 {[%clk 0:01:15.5]} 32. g4
{[%clk 0:01:20.6]} 32... Nb6 {[%clk 0:01:12.7]} 33. Ne3 {[%clk 0:01:01.5]} 33...
Ke6 {[%clk 0:01:12.3]} 34. Re1 {[%clk 0:00:57.1]} 34... Kf7 {[%clk 0:01:13.9]}
35. Rh1 {[%clk 0:00:56]} 35... g6 {[%clk 0:01:13.8]} 36. Ng2 {[%clk 0:00:48.2]}
36... Bg7 {[%clk 0:00:57.4]} 37. Bf4 {[%clk 0:00:43.7]} 37... Na4 {[%clk
0:00:50.4]} 38. Ne3 {[%clk 0:00:41]} 38... Rd8 {[%clk 0:00:15.6]} 39. hxg6+
{[%clk 0:00:39.9]} 39... hxg6 {[%clk 0:00:17.5]} 40. Kg3 {[%clk 0:00:33.7]}
40... Rd7 {[%clk 0:00:06.4]} 41. Nd1 {[%clk 0:00:28.5]} 41... Kg8 {[%clk
0:00:05.9]} 42. Re1 {[%clk 0:00:27.5]} 42... Kf7 {[%clk 0:00:07.1]} 43. Re2
{[%clk 0:00:22.9]} 43... Bf8 {[%clk 0:00:08.4]} 44. Kf2 {[%clk 0:00:22.9]} 44...
Be7 {[%clk 0:00:06.7]} 45. Ne3 {[%clk 0:00:22.3]} 45... Rd8 {[%clk 0:00:07.9]}
46. Kg2 {[%clk 0:00:17.8]} 46... Rd7 {[%clk 0:00:08.4]} 47. Nd1 {[%clk
0:00:16.2]} 47... Bd8 {[%clk 0:00:09.3]} 48. Bc1 {[%clk 0:00:16]} 48... Bc7
{[%clk 0:00:10]} 49. Be3 {[%clk 0:00:14]} 49... Rd8 {[%clk 0:00:11.6]} 50. Bf2
{[%clk 0:00:14.1]} 50... f5 {[%clk 0:00:08.7]} 51. Bg3 {[%clk 0:00:13.7]} 51...
f4 {[%clk 0:00:09.7]} 52. Bh4 {[%clk 0:00:13.3]} 52... Re8 {[%clk 0:00:07.3]}
53. Rxe8 {[%clk 0:00:11.7]} 53... Kxe8 {[%clk 0:00:09.2]} 54. Bg5 {[%clk
0:00:13]} 54... Kf7 {[%clk 0:00:10.3]} 55. Kf2 {[%clk 0:00:14]} 55... Bd6 {[%clk
0:00:07.8]} 56. Ke2 {[%clk 0:00:14.8]} 56... Nb6 {[%clk 0:00:07.7]} 57. Kd2
{[%clk 0:00:13.9]} 57... Na8 {[%clk 0:00:07.5]} 58. Bd8 {[%clk 0:00:12.3]} 58...
Ke8 {[%clk 0:00:08.2]} 59. Bh4 {[%clk 0:00:07.7]} 59... Nc7 {[%clk 0:00:09.3]}
60. Nf2 {[%clk 0:00:07.3]} 60... Ne6 {[%clk 0:00:11.2]} 61. Nh3 {[%clk
0:00:08.3]} 61... Be7 {[%clk 0:00:08.6]} 62. Bf2 {[%clk 0:00:08.8]} 62... Kd7
{[%clk 0:00:09]} 63. Kc2 {[%clk 0:00:09.3]} 63... Kc6 {[%clk 0:00:10.4]} 64. b4
{[%clk 0:00:08.9]} 64... cxb3+ {[%clk 0:00:08.3]} 65. Kxb3 {[%clk 0:00:09.8]}
65... g5 {[%clk 0:00:09.8]} 66. Ng1 {[%clk 0:00:05.8]} 66... Nc7 {[%clk
0:00:11.1]} 67. Ne2 {[%clk 0:00:05.9]} 67... Na8 {[%clk 0:00:10.3]} 68. a4
{[%clk 0:00:06.4]} 68... Nb6 {[%clk 0:00:09]} 69. axb5+ {[%clk 0:00:07.1]} 69...
Kxb5 {[%clk 0:00:10.9]} 70. Nc1 {[%clk 0:00:05.3]} 70... Nc4 {[%clk 0:00:12.4]}
71. Kc2 {[%clk 0:00:06.2]} 71... Bd6 {[%clk 0:00:12.5]} 72. Nd3 {[%clk
0:00:05.6]} 72... Ka4 {[%clk 0:00:13.7]} 73. Nb2+ {[%clk 0:00:03.4]} 73... Nxb2
{[%clk 0:00:12.1]} 74. Kxb2 {[%clk 0:00:04.5]} 74... b5 {[%clk 0:00:14]} 75. Be1
{[%clk 0:00:03]} 75... b4 {[%clk 0:00:05.2]} 0-1